{"text_format":"1","workbook":"xlsx","n_sheets":10,"sheets":["MapaEstrategico","BSC Objetivos","BSC Seguimiento","GestiónIndividual","Indicadores","1","2","3","Hoja1","4"],"not_rendered":{"charts":0,"images":0,"macros":1,"external_links":0,"defined_names":0,"comments":0,"pivot_tables":0},"unopened":[],"bounds":{"document_bytes":16777216,"sheet_cells":100000,"rows_first":2000,"rows_last":500,"rows_between":2000,"halvings":0,"cell_chars":16384,"cell_head_chars":4096},"cells_cut":0,"cells_raw":0,"read":"whole","date_system":"1900"}

{"sheet":"MapaEstrategico","index":0,"n_rows":12,"n_cols":6,"rows_kept":12,"cut":false,"hidden":false,"merged":[[1,2,1,7],[7,2,7,7],[2,2,2,7],[5,2,5,4],[5,5,5,7],[4,2,4,4],[4,5,4,7],[9,6,9,7],[10,6,10,7],[11,6,11,7],[8,2,8,4],[8,5,8,7],[9,2,9,3],[10,2,10,3],[11,2,11,3],[9,4,9,5],[10,4,10,5],[11,4,11,5]]}
[]
[null,null,"ESTRATEGIA"]
[null,null,"Incrmentar los ingresos apalancados en la incursion en mercados internacionales gracias a productos competitivos e innovadores. El 20% de los ingresos provendran de ventas internacionales en los proximos 5 años"]
[]
[null,null,"MISIÓN",null,null,"VISIÓN"]
[null,", ","Somos una empresa manufacturera, que desarrolla productos innovadores y con los mas altos estandares internacionales. Que sustenta su gestion en un equipo competitivo y que se preocupa por impactar positivamente a la comunidad",null,null,"Seremos un referente nacional en la exportacion de productos de alta calidad en los proximos 5 años"]
[]
[null,"Perspectiva","Objetivos"]
[null,"Finanzas","Incremetar el margen neto hasta alcanzar un 10% en los proximos 5 años"]
[null,"Clientes","Lograr que el 20% de los ingresos provengan de ventas internacionales en los proximos 5 años"]
[null,"Procesos Internos","Crear un nuevo producto por año durante los proximos 5 años"]
[null,"Crecimiento y aprendizaje","Formar al 100% del equipo de mercadeo y de producción en metodos agiles de innovación en los proximos 5 años"]

{"sheet":"BSC Objetivos","index":1,"n_rows":27,"n_cols":22,"rows_kept":27,"cut":false,"hidden":false,"merged":[[23,20,24,20],[25,20,26,20],[5,21,6,21],[7,21,8,21],[9,21,10,21],[11,21,12,21],[13,21,14,21],[15,21,16,21],[17,21,18,21],[19,21,20,21],[21,21,22,21],[23,21,24,21],[25,21,26,21],[13,20,14,20],[15,20,16,20],[17,20,18,20],[19,20,20,20],[21,20,22,20],[5,20,6,20],[7,20,8,20],[9,20,10,20],[11,20,12,20],[23,18,24,18],[25,18,26,18],[5,19,6,19],[7,19,8,19],[9,19,10,19],[11,19,12,19],[13,19,14,19],[15,19,16,19],[17,19,18,19],[19,19,20,19],[21,19,22,19],[23,19,24,19],[25,19,26,19],[13,18,14,18],[15,18,16,18],[17,18,18,18],[19,18,20,18],[21,18,22,18],[5,18,6,18],[7,18,8,18],[9,18,10,18],[11,18,12,18],[3,18,3,21],[3,1,4,1],[9,1,14,1],[9,2,10,2],[11,2,12,2],[13,2,14,2],[5,1,8,1],[5,2,6,2],[7,2,8,2],[3,4,3,9],[3,10,3,17],[3,2,3,3],[5,3,6,3],[7,3,8,3],[9,3,10,3],[15,1,20,1],[15,2,16,2],[17,2,18,2],[19,2,20,2],[21,1,26,1],[21,2,22,2],[23,2,24,2],[25,2,26,2],[21,3,22,3],[23,3,24,3],[25,3,26,3],[11,3,12,3],[13,3,14,3],[15,3,16,3],[17,3,18,3],[19,3,20,3]]}
[]
[null,null,"Fecha de elaboración",null,"2023-03-15"]
[]
[null,"PERSPECTIVA","OBJETIVOS",null,"INDICADORES",null,null,null,null,null,"METAS",null,null,null,null,null,null,null,"PLANES TÁCTICO"]
[null,null,"Objetivo ","Objetivo SMART","Indicador","Formula","Unidad de Medida (Porcentaje, Dinero, Unidades,etc)","Periodicidad de la Medición","Resultado del Ultimo Periodo (Si no se puede calcular colocar ND)","Promedio de la Industria (Si no se tiene colocar ND)","Concepto (proceso o elemento se debe gestionar)","Año 1","Año 2","Año 3","Año 4","Año 5","Unidad de medida(Porcentaje, Dinero, Unidades,etc)","Fecha Limite para el Cumplimiento de la Meta del año en curso","PLAN TÁCTICO","Detalle de Inversiones requeridas(Preoperativo, Capital de trabajo, Detalle de Activos Fijos)","Inversion Requerida(en Pesos)","Responsable"]
[null,"Finanzas",{"$f":"+MapaEstrategico!C9","v":"Incremetar el margen neto hasta alcanzar un 10% en los proximos 5 años"},null,"Margen Neto",{"$f":"IFERROR(VLOOKUP(E6,'1'!$B$6:$C$32,2,FALSE),\"\")","v":"Utilidad Neta/Ventas"},"Porcentaje","Trimestral",0.05,7.0000000000000007E-2,"Utilidad neta",0.06,7.0000000000000007E-2,0.08,0.09,0.1,{"$f":"IF(G6=0,\"\",G6)","v":"Porcentaje"},"2023-11-30","implementar un sistema de gestion eficiente de recursos fisicios y energeticos",null,null,"Gerente financiero y el Gerente de producción"]
[null,null,null,null,"Incremento utilidad Neta",{"$f":"IFERROR(VLOOKUP(E7,'1'!$B$6:$C$32,2,FALSE),\"\")","v":"(Utilidad neta t-utilidad neta  t-1)/Utilidad neta t-1"},"Porcentaje","Trimestral",0.05,7.0000000000000007E-2,"Utilidad neta",0.01,0.01,0.01,0.01,0.01,{"$f":"IF(G7=0,\"\",G7)","v":"Porcentaje"}]
[null,null,{"$f":"+MapaEstrategico!F9","v":0},null,null,{"$f":"IFERROR(VLOOKUP(E8,'1'!$B$6:$C$32,2,FALSE),\"\")","v":""},null,null,null,null,null,3,null,null,null,null,"",null,"b"]
[null,null,null,null,null,{"$f":"IFERROR(VLOOKUP(E9,'1'!$B$6:$C$32,2,FALSE),\"\")","v":""},null,null,null,null,null,4,null,null,null,null,""]
[null,"Clientes",{"$f":"+MapaEstrategico!C10","v":"Lograr que el 20% de los ingresos provengan de ventas internacionales en los proximos 5 años"},null,null,{"$f":"IFERROR(VLOOKUP(E10,'2'!$B$6:$C$18,2,FALSE),\"\")","v":""},"Porcentaje","Mensual",null,null,"Exportaciones",0.05,0.1,0.2,null,null,"Porcentaje",null,"Participacion en ferias internacionales y ruedas de negocio",null,null,"Gerente de Mercadeo y Gerente de Producción"]
[null,null,null,null,null,{"$f":"IFERROR(VLOOKUP(E11,'2'!$B$6:$C$18,2,FALSE),\"\")","v":""},null,null,null,null,null,null,null,null,null,null,""]
[null,null,{"$f":"+MapaEstrategico!E10","v":0},null,null,{"$f":"IFERROR(VLOOKUP(E12,'2'!$B$6:$C$18,2,FALSE),\"\")","v":""},null,null,null,null,null,null,null,null,null,null,"",null,"d"]
[null,null,null,null,null,{"$f":"IFERROR(VLOOKUP(E13,'2'!$B$6:$C$18,2,FALSE),\"\")","v":""},null,null,null,null,null,null,null,null,null,null,""]
[null,null,{"$f":"+MapaEstrategico!G10","v":0},null,null,{"$f":"IFERROR(VLOOKUP(E14,'2'!$B$6:$C$18,2,FALSE),\"\")","v":""},null,null,null,null,null,null,null,null,null,null,"",null,"e"]
[null,null,null,null,null,{"$f":"IFERROR(VLOOKUP(E15,'2'!$B$6:$C$18,2,FALSE),\"\")","v":""},null,null,null,null,null,null,null,null,null,null,""]
[null,"Procesos Internos",{"$f":"+MapaEstrategico!C11","v":"Crear un nuevo producto por año durante los proximos 5 años"},null,null,{"$f":"IFERROR(VLOOKUP(E16,'3'!$B$6:$C$22,2,FALSE),\"\")","v":""},null,null,null,null,null,null,null,null,null,null,"",null,"f"]
[null,null,null,null,null,{"$f":"IFERROR(VLOOKUP(E17,'3'!$B$6:$C$22,2,FALSE),\"\")","v":""},null,null,null,null,null,null,null,null,null,null,""]
[null,null,{"$f":"+MapaEstrategico!E11","v":0},null,null,{"$f":"IFERROR(VLOOKUP(E18,'3'!$B$6:$C$22,2,FALSE),\"\")","v":""},null,null,null,null,null,null,null,null,null,null,"",null,"g"]
[null,null,null,null,null,{"$f":"IFERROR(VLOOKUP(E19,'3'!$B$6:$C$22,2,FALSE),\"\")","v":""},null,null,null,null,null,null,null,null,null,null,""]
[null,null,{"$f":"+MapaEstrategico!G11","v":0},null,null,{"$f":"IFERROR(VLOOKUP(E20,'3'!$B$6:$C$22,2,FALSE),\"\")","v":""},null,null,null,null,null,null,null,null,null,null,"",null,"h"]
[null,null,null,null,null,{"$f":"IFERROR(VLOOKUP(E21,'3'!$B$6:$C$22,2,FALSE),\"\")","v":""},null,null,null,null,null,null,null,null,null,null,""]
[null,"Crecimiento y Aprendizaje",{"$f":"+MapaEstrategico!C12","v":"Formar al 100% del equipo de mercadeo y de producción en metodos agiles de innovación en los proximos 5 años"},null,null,{"$f":"IFERROR(VLOOKUP(E22,'4'!$B$6:$C$21,2,FALSE),\"\")","v":""},"Porcentaje","Mensual",0.8,0.9,"Cimplimiento de horas de capacitación",0.9,0.95,0.96,0.97,0.98,"Porcentaje","2019-11-30","i","sssssssssssssssssssssssss",20000000,"juan"]
[null,null,null,null,null,{"$f":"IFERROR(VLOOKUP(E23,'4'!$B$6:$C$21,2,FALSE),\"\")","v":""},null,null,null,null,null,null,null,null,null,null,""]
[null,null,{"$f":"+MapaEstrategico!E12","v":0},null,null,{"$f":"IFERROR(VLOOKUP(E24,'4'!$B$6:$C$21,2,FALSE),\"\")","v":""},null,null,null,null,null,null,null,null,null,null,"",null,"j"]
[null,null,null,null,null,{"$f":"IFERROR(VLOOKUP(E25,'4'!$B$6:$C$21,2,FALSE),\"\")","v":""},null,null,null,null,null,null,null,null,null,null,""]
[null,null,{"$f":"+MapaEstrategico!G12","v":0},null,null,{"$f":"IFERROR(VLOOKUP(E26,'4'!$B$6:$C$21,2,FALSE),\"\")","v":""},null,null,null,null,null,null,null,null,null,null,"",null,"k"]
[null,null,null,null,null,{"$f":"IFERROR(VLOOKUP(E27,'4'!$B$6:$C$21,2,FALSE),\"\")","v":""},null,null,null,null,null,null,null,null,null,null,""]

{"sheet":"BSC Seguimiento","index":2,"n_rows":27,"n_cols":13,"rows_kept":27,"cut":false,"hidden":false,"merged":[[15,1,20,1],[15,2,16,2],[17,2,18,2],[19,2,20,2],[21,1,26,1],[21,2,22,2],[23,2,24,2],[25,2,26,2],[5,1,8,1],[5,2,6,2],[7,2,8,2],[9,1,14,1],[9,2,10,2],[11,2,12,2],[13,2,14,2]]}
[]
[null,null,"Fecha del Seguimiento","2023-11-30"]
[null,null,"Periodo que se evalúa","Año 1"]
[]
[null,"Perspectiva","Objetivos","Indicador","Concepto (proceso o elemento se debe gestionar)","Meta","Resultado","Unidad de Medida","Resultado del Ultimo Periodo","Promedio de la Industria (Si no se tiene colocar ND)","Porcentaje de Avance Esperado","Porcentaje de Avance Real","Semáforo"]
[2,"Finanzas",{"$f":"+MapaEstrategico!C9","v":"Incremetar el margen neto hasta alcanzar un 10% en los proximos 5 años"},{"$f":"IF('BSC Objetivos'!E6=0,\"\",'BSC Objetivos'!E6)","v":"Margen Neto"},{"$f":"+IF('BSC Objetivos'!K6=0,\"\",'BSC Objetivos'!K6)","v":"Utilidad neta"},{"$f":"IFERROR(IF(HLOOKUP($D$3,'BSC Objetivos'!$L$5:$P$27,A6,FALSE)=0,\"\",HLOOKUP($D$3,'BSC Objetivos'!$L$5:$P$27,A6,FALSE)),\"\")","v":0.06},0.04,{"$f":"+IF('BSC Objetivos'!G6=0,\"\",'BSC Objetivos'!G6)","v":"Porcentaje"},0.03,"ND",{"$f":"IFERROR(IF((('BSC Objetivos'!R6-'BSC Objetivos'!$E$2)-('BSC Objetivos'!R6-'BSC Seguimiento'!$D$2))/('BSC Objetivos'!R6-'BSC Objetivos'!$E$2)>1,1,(('BSC Objetivos'!R6-'BSC Objetivos'!$E$2)-(+'BSC Objetivos'!R6-'BSC Seguimiento'!$D$2))/('BSC Objetivos'!R6-'BSC Objetivos'!$E$2)),\"\")","v":1},{"$f":"IFERROR(G6/F6,\"\")","v":0.66666666666666674},{"$f":"IF(L6=0,0,L6/K6)","v":0.66666666666666674}]
[3,null,null,{"$f":"IF('BSC Objetivos'!E7=0,\"\",'BSC Objetivos'!E7)","v":"Incremento utilidad Neta"},{"$f":"+IF('BSC Objetivos'!K7=0,\"\",'BSC Objetivos'!K7)","v":"Utilidad neta"},{"$f":"IFERROR(IF(HLOOKUP($D$3,'BSC Objetivos'!$L$5:$P$27,A7,FALSE)=0,\"\",HLOOKUP($D$3,'BSC Objetivos'!$L$5:$P$27,A7,FALSE)),\"\")","v":0.01},5.0000000000000001E-3,{"$f":"+IF('BSC Objetivos'!G7=0,\"\",'BSC Objetivos'!G7)","v":"Porcentaje"},{"$f":"+IF('BSC Objetivos'!I7=0,\"\",'BSC Objetivos'!I7)","v":0.05},null,{"$f":"IFERROR(IF((('BSC Objetivos'!R7-'BSC Objetivos'!$E$2)-('BSC Objetivos'!R7-'BSC Seguimiento'!$D$2))/('BSC Objetivos'!R7-'BSC Objetivos'!$E$2)>1,1,(('BSC Objetivos'!R7-'BSC Objetivos'!$E$2)-(+'BSC Objetivos'!R7-'BSC Seguimiento'!$D$2))/('BSC Objetivos'!R7-'BSC Objetivos'!$E$2)),\"\")","v":-5.7777777777777775E-3},{"$f":"IFERROR(G7/F7,\"\")","v":0.5},-86.538461538461547]
[4,null,{"$f":"+MapaEstrategico!F9","v":0},{"$f":"IF('BSC Objetivos'!E8=0,\"\",'BSC Objetivos'!E8)","v":""},{"$f":"+IF('BSC Objetivos'!K8=0,\"\",'BSC Objetivos'!K8)","v":""},{"$f":"IFERROR(IF(HLOOKUP($D$3,'BSC Objetivos'!$L$5:$P$27,A8,FALSE)=0,\"\",HLOOKUP($D$3,'BSC Objetivos'!$L$5:$P$27,A8,FALSE)),\"\")","v":3},null,{"$f":"+IF('BSC Objetivos'!G8=0,\"\",'BSC Objetivos'!G8)","v":""},{"$f":"+IF('BSC Objetivos'!I8=0,\"\",'BSC Objetivos'!I8)","v":""},null,{"$f":"IFERROR(IF((('BSC Objetivos'!R8-'BSC Objetivos'!$E$2)-('BSC Objetivos'!R8-'BSC Seguimiento'!$D$2))/('BSC Objetivos'!R8-'BSC Objetivos'!$E$2)>1,1,(('BSC Objetivos'!R8-'BSC Objetivos'!$E$2)-(+'BSC Objetivos'!R8-'BSC Seguimiento'!$D$2))/('BSC Objetivos'!R8-'BSC Objetivos'!$E$2)),\"\")","v":-5.7777777777777775E-3},0,0]
[5,null,null,{"$f":"IF('BSC Objetivos'!E9=0,\"\",'BSC Objetivos'!E9)","v":""},{"$f":"+IF('BSC Objetivos'!K9=0,\"\",'BSC Objetivos'!K9)","v":""},{"$f":"IFERROR(IF(HLOOKUP($D$3,'BSC Objetivos'!$L$5:$P$27,A9,FALSE)=0,\"\",HLOOKUP($D$3,'BSC Objetivos'!$L$5:$P$27,A9,FALSE)),\"\")","v":4},null,{"$f":"+IF('BSC Objetivos'!G9=0,\"\",'BSC Objetivos'!G9)","v":""},{"$f":"+IF('BSC Objetivos'!I9=0,\"\",'BSC Objetivos'!I9)","v":""},null,{"$f":"IFERROR(IF((('BSC Objetivos'!R9-'BSC Objetivos'!$E$2)-('BSC Objetivos'!R9-'BSC Seguimiento'!$D$2))/('BSC Objetivos'!R9-'BSC Objetivos'!$E$2)>1,1,(('BSC Objetivos'!R9-'BSC Objetivos'!$E$2)-(+'BSC Objetivos'!R9-'BSC Seguimiento'!$D$2))/('BSC Objetivos'!R9-'BSC Objetivos'!$E$2)),\"\")","v":-5.7777777777777775E-3},0,0]
[6,"Clientes",{"$f":"+MapaEstrategico!C10","v":"Lograr que el 20% de los ingresos provengan de ventas internacionales en los proximos 5 años"},{"$f":"IF('BSC Objetivos'!E10=0,\"\",'BSC Objetivos'!E10)","v":""},{"$f":"+IF('BSC Objetivos'!K10=0,\"\",'BSC Objetivos'!K10)","v":"Exportaciones"},{"$f":"IFERROR(IF(HLOOKUP($D$3,'BSC Objetivos'!$L$5:$P$27,A10,FALSE)=0,\"\",HLOOKUP($D$3,'BSC Objetivos'!$L$5:$P$27,A10,FALSE)),\"\")","v":0.05},null,{"$f":"+IF('BSC Objetivos'!G10=0,\"\",'BSC Objetivos'!G10)","v":"Porcentaje"},{"$f":"+IF('BSC Objetivos'!I10=0,\"\",'BSC Objetivos'!I10)","v":""},null,{"$f":"IFERROR(IF((('BSC Objetivos'!R10-'BSC Objetivos'!$E$2)-('BSC Objetivos'!R10-'BSC Seguimiento'!$D$2))/('BSC Objetivos'!R10-'BSC Objetivos'!$E$2)>1,1,(('BSC Objetivos'!R10-'BSC Objetivos'!$E$2)-(+'BSC Objetivos'!R10-'BSC Seguimiento'!$D$2))/('BSC Objetivos'!R10-'BSC Objetivos'!$E$2)),\"\")","v":-5.7777777777777775E-3},0,0]
[7,null,null,{"$f":"IF('BSC Objetivos'!E11=0,\"\",'BSC Objetivos'!E11)","v":""},{"$f":"+IF('BSC Objetivos'!K11=0,\"\",'BSC Objetivos'!K11)","v":""},{"$f":"IFERROR(IF(HLOOKUP($D$3,'BSC Objetivos'!$L$5:$P$27,A11,FALSE)=0,\"\",HLOOKUP($D$3,'BSC Objetivos'!$L$5:$P$27,A11,FALSE)),\"\")","v":""},null,{"$f":"+IF('BSC Objetivos'!G11=0,\"\",'BSC Objetivos'!G11)","v":""},{"$f":"+IF('BSC Objetivos'!I11=0,\"\",'BSC Objetivos'!I11)","v":""},null,{"$f":"IFERROR(IF((('BSC Objetivos'!R11-'BSC Objetivos'!$E$2)-('BSC Objetivos'!R11-'BSC Seguimiento'!$D$2))/('BSC Objetivos'!R11-'BSC Objetivos'!$E$2)>1,1,(('BSC Objetivos'!R11-'BSC Objetivos'!$E$2)-(+'BSC Objetivos'!R11-'BSC Seguimiento'!$D$2))/('BSC Objetivos'!R11-'BSC Objetivos'!$E$2)),\"\")","v":-5.7777777777777775E-3},"",{"$error":"#VALUE!"}]
[8,null,{"$f":"+MapaEstrategico!E10","v":0},{"$f":"IF('BSC Objetivos'!E12=0,\"\",'BSC Objetivos'!E12)","v":""},{"$f":"+IF('BSC Objetivos'!K12=0,\"\",'BSC Objetivos'!K12)","v":""},{"$f":"IFERROR(IF(HLOOKUP($D$3,'BSC Objetivos'!$L$5:$P$27,A12,FALSE)=0,\"\",HLOOKUP($D$3,'BSC Objetivos'!$L$5:$P$27,A12,FALSE)),\"\")","v":""},null,{"$f":"+IF('BSC Objetivos'!G12=0,\"\",'BSC Objetivos'!G12)","v":""},{"$f":"+IF('BSC Objetivos'!I12=0,\"\",'BSC Objetivos'!I12)","v":""},null,{"$f":"IFERROR(IF((('BSC Objetivos'!R12-'BSC Objetivos'!$E$2)-('BSC Objetivos'!R12-'BSC Seguimiento'!$D$2))/('BSC Objetivos'!R12-'BSC Objetivos'!$E$2)>1,1,(('BSC Objetivos'!R12-'BSC Objetivos'!$E$2)-(+'BSC Objetivos'!R12-'BSC Seguimiento'!$D$2))/('BSC Objetivos'!R12-'BSC Objetivos'!$E$2)),\"\")","v":-5.7777777777777775E-3},"",{"$error":"#VALUE!"}]
[9,null,null,{"$f":"IF('BSC Objetivos'!E13=0,\"\",'BSC Objetivos'!E13)","v":""},{"$f":"+IF('BSC Objetivos'!K13=0,\"\",'BSC Objetivos'!K13)","v":""},{"$f":"IFERROR(IF(HLOOKUP($D$3,'BSC Objetivos'!$L$5:$P$27,A13,FALSE)=0,\"\",HLOOKUP($D$3,'BSC Objetivos'!$L$5:$P$27,A13,FALSE)),\"\")","v":""},null,{"$f":"+IF('BSC Objetivos'!G13=0,\"\",'BSC Objetivos'!G13)","v":""},{"$f":"+IF('BSC Objetivos'!I13=0,\"\",'BSC Objetivos'!I13)","v":""},null,{"$f":"IFERROR(IF((('BSC Objetivos'!R13-'BSC Objetivos'!$E$2)-('BSC Objetivos'!R13-'BSC Seguimiento'!$D$2))/('BSC Objetivos'!R13-'BSC Objetivos'!$E$2)>1,1,(('BSC Objetivos'!R13-'BSC Objetivos'!$E$2)-(+'BSC Objetivos'!R13-'BSC Seguimiento'!$D$2))/('BSC Objetivos'!R13-'BSC Objetivos'!$E$2)),\"\")","v":-5.7777777777777775E-3},"",{"$error":"#VALUE!"}]
[10,null,{"$f":"+MapaEstrategico!G10","v":0},{"$f":"IF('BSC Objetivos'!E14=0,\"\",'BSC Objetivos'!E14)","v":""},{"$f":"+IF('BSC Objetivos'!K14=0,\"\",'BSC Objetivos'!K14)","v":""},{"$f":"IFERROR(IF(HLOOKUP($D$3,'BSC Objetivos'!$L$5:$P$27,A14,FALSE)=0,\"\",HLOOKUP($D$3,'BSC Objetivos'!$L$5:$P$27,A14,FALSE)),\"\")","v":""},null,{"$f":"+IF('BSC Objetivos'!G14=0,\"\",'BSC Objetivos'!G14)","v":""},{"$f":"+IF('BSC Objetivos'!I14=0,\"\",'BSC Objetivos'!I14)","v":""},null,{"$f":"IFERROR(IF((('BSC Objetivos'!R14-'BSC Objetivos'!$E$2)-('BSC Objetivos'!R14-'BSC Seguimiento'!$D$2))/('BSC Objetivos'!R14-'BSC Objetivos'!$E$2)>1,1,(('BSC Objetivos'!R14-'BSC Objetivos'!$E$2)-(+'BSC Objetivos'!R14-'BSC Seguimiento'!$D$2))/('BSC Objetivos'!R14-'BSC Objetivos'!$E$2)),\"\")","v":-5.7777777777777775E-3},"",{"$error":"#VALUE!"}]
[11,null,null,{"$f":"IF('BSC Objetivos'!E15=0,\"\",'BSC Objetivos'!E15)","v":""},{"$f":"+IF('BSC Objetivos'!K15=0,\"\",'BSC Objetivos'!K15)","v":""},{"$f":"IFERROR(IF(HLOOKUP($D$3,'BSC Objetivos'!$L$5:$P$27,A15,FALSE)=0,\"\",HLOOKUP($D$3,'BSC Objetivos'!$L$5:$P$27,A15,FALSE)),\"\")","v":""},null,{"$f":"+IF('BSC Objetivos'!G15=0,\"\",'BSC Objetivos'!G15)","v":""},{"$f":"+IF('BSC Objetivos'!I15=0,\"\",'BSC Objetivos'!I15)","v":""},null,{"$f":"IFERROR(IF((('BSC Objetivos'!R15-'BSC Objetivos'!$E$2)-('BSC Objetivos'!R15-'BSC Seguimiento'!$D$2))/('BSC Objetivos'!R15-'BSC Objetivos'!$E$2)>1,1,(('BSC Objetivos'!R15-'BSC Objetivos'!$E$2)-(+'BSC Objetivos'!R15-'BSC Seguimiento'!$D$2))/('BSC Objetivos'!R15-'BSC Objetivos'!$E$2)),\"\")","v":-5.7777777777777775E-3},"",{"$error":"#VALUE!"}]
[12,"Procesos Internos",{"$f":"+MapaEstrategico!C11","v":"Crear un nuevo producto por año durante los proximos 5 años"},{"$f":"IF('BSC Objetivos'!E16=0,\"\",'BSC Objetivos'!E16)","v":""},{"$f":"+IF('BSC Objetivos'!K16=0,\"\",'BSC Objetivos'!K16)","v":""},{"$f":"IFERROR(IF(HLOOKUP($D$3,'BSC Objetivos'!$L$5:$P$27,A16,FALSE)=0,\"\",HLOOKUP($D$3,'BSC Objetivos'!$L$5:$P$27,A16,FALSE)),\"\")","v":""},null,{"$f":"+IF('BSC Objetivos'!G16=0,\"\",'BSC Objetivos'!G16)","v":""},{"$f":"+IF('BSC Objetivos'!I16=0,\"\",'BSC Objetivos'!I16)","v":""},null,{"$f":"IFERROR(IF((('BSC Objetivos'!R16-'BSC Objetivos'!$E$2)-('BSC Objetivos'!R16-'BSC Seguimiento'!$D$2))/('BSC Objetivos'!R16-'BSC Objetivos'!$E$2)>1,1,(('BSC Objetivos'!R16-'BSC Objetivos'!$E$2)-(+'BSC Objetivos'!R16-'BSC Seguimiento'!$D$2))/('BSC Objetivos'!R16-'BSC Objetivos'!$E$2)),\"\")","v":-5.7777777777777775E-3},"",{"$error":"#VALUE!"}]
[13,null,null,{"$f":"IF('BSC Objetivos'!E17=0,\"\",'BSC Objetivos'!E17)","v":""},{"$f":"+IF('BSC Objetivos'!K17=0,\"\",'BSC Objetivos'!K17)","v":""},{"$f":"IFERROR(IF(HLOOKUP($D$3,'BSC Objetivos'!$L$5:$P$27,A17,FALSE)=0,\"\",HLOOKUP($D$3,'BSC Objetivos'!$L$5:$P$27,A17,FALSE)),\"\")","v":""},null,{"$f":"+IF('BSC Objetivos'!G17=0,\"\",'BSC Objetivos'!G17)","v":""},{"$f":"+IF('BSC Objetivos'!I17=0,\"\",'BSC Objetivos'!I17)","v":""},null,{"$f":"IFERROR(IF((('BSC Objetivos'!R17-'BSC Objetivos'!$E$2)-('BSC Objetivos'!R17-'BSC Seguimiento'!$D$2))/('BSC Objetivos'!R17-'BSC Objetivos'!$E$2)>1,1,(('BSC Objetivos'!R17-'BSC Objetivos'!$E$2)-(+'BSC Objetivos'!R17-'BSC Seguimiento'!$D$2))/('BSC Objetivos'!R17-'BSC Objetivos'!$E$2)),\"\")","v":-5.7777777777777775E-3},"",{"$error":"#VALUE!"}]
[14,null,{"$f":"+MapaEstrategico!E11","v":0},{"$f":"IF('BSC Objetivos'!E18=0,\"\",'BSC Objetivos'!E18)","v":""},{"$f":"+IF('BSC Objetivos'!K18=0,\"\",'BSC Objetivos'!K18)","v":""},{"$f":"IFERROR(IF(HLOOKUP($D$3,'BSC Objetivos'!$L$5:$P$27,A18,FALSE)=0,\"\",HLOOKUP($D$3,'BSC Objetivos'!$L$5:$P$27,A18,FALSE)),\"\")","v":""},null,{"$f":"+IF('BSC Objetivos'!G18=0,\"\",'BSC Objetivos'!G18)","v":""},{"$f":"+IF('BSC Objetivos'!I18=0,\"\",'BSC Objetivos'!I18)","v":""},null,{"$f":"IFERROR(IF((('BSC Objetivos'!R18-'BSC Objetivos'!$E$2)-('BSC Objetivos'!R18-'BSC Seguimiento'!$D$2))/('BSC Objetivos'!R18-'BSC Objetivos'!$E$2)>1,1,(('BSC Objetivos'!R18-'BSC Objetivos'!$E$2)-(+'BSC Objetivos'!R18-'BSC Seguimiento'!$D$2))/('BSC Objetivos'!R18-'BSC Objetivos'!$E$2)),\"\")","v":-5.7777777777777775E-3},"",{"$error":"#VALUE!"}]
[15,null,null,{"$f":"IF('BSC Objetivos'!E19=0,\"\",'BSC Objetivos'!E19)","v":""},{"$f":"+IF('BSC Objetivos'!K19=0,\"\",'BSC Objetivos'!K19)","v":""},{"$f":"IFERROR(IF(HLOOKUP($D$3,'BSC Objetivos'!$L$5:$P$27,A19,FALSE)=0,\"\",HLOOKUP($D$3,'BSC Objetivos'!$L$5:$P$27,A19,FALSE)),\"\")","v":""},null,{"$f":"+IF('BSC Objetivos'!G19=0,\"\",'BSC Objetivos'!G19)","v":""},{"$f":"+IF('BSC Objetivos'!I19=0,\"\",'BSC Objetivos'!I19)","v":""},null,{"$f":"IFERROR(IF((('BSC Objetivos'!R19-'BSC Objetivos'!$E$2)-('BSC Objetivos'!R19-'BSC Seguimiento'!$D$2))/('BSC Objetivos'!R19-'BSC Objetivos'!$E$2)>1,1,(('BSC Objetivos'!R19-'BSC Objetivos'!$E$2)-(+'BSC Objetivos'!R19-'BSC Seguimiento'!$D$2))/('BSC Objetivos'!R19-'BSC Objetivos'!$E$2)),\"\")","v":-5.7777777777777775E-3},"",{"$error":"#VALUE!"}]
[16,null,{"$f":"+MapaEstrategico!G11","v":0},{"$f":"IF('BSC Objetivos'!E20=0,\"\",'BSC Objetivos'!E20)","v":""},{"$f":"+IF('BSC Objetivos'!K20=0,\"\",'BSC Objetivos'!K20)","v":""},{"$f":"IFERROR(IF(HLOOKUP($D$3,'BSC Objetivos'!$L$5:$P$27,A20,FALSE)=0,\"\",HLOOKUP($D$3,'BSC Objetivos'!$L$5:$P$27,A20,FALSE)),\"\")","v":""},null,{"$f":"+IF('BSC Objetivos'!G20=0,\"\",'BSC Objetivos'!G20)","v":""},{"$f":"+IF('BSC Objetivos'!I20=0,\"\",'BSC Objetivos'!I20)","v":""},null,{"$f":"IFERROR(IF((('BSC Objetivos'!R20-'BSC Objetivos'!$E$2)-('BSC Objetivos'!R20-'BSC Seguimiento'!$D$2))/('BSC Objetivos'!R20-'BSC Objetivos'!$E$2)>1,1,(('BSC Objetivos'!R20-'BSC Objetivos'!$E$2)-(+'BSC Objetivos'!R20-'BSC Seguimiento'!$D$2))/('BSC Objetivos'!R20-'BSC Objetivos'!$E$2)),\"\")","v":-5.7777777777777775E-3},"",{"$error":"#VALUE!"}]
[17,null,null,{"$f":"IF('BSC Objetivos'!E21=0,\"\",'BSC Objetivos'!E21)","v":""},{"$f":"+IF('BSC Objetivos'!K21=0,\"\",'BSC Objetivos'!K21)","v":""},{"$f":"IFERROR(IF(HLOOKUP($D$3,'BSC Objetivos'!$L$5:$P$27,A21,FALSE)=0,\"\",HLOOKUP($D$3,'BSC Objetivos'!$L$5:$P$27,A21,FALSE)),\"\")","v":""},null,{"$f":"+IF('BSC Objetivos'!G21=0,\"\",'BSC Objetivos'!G21)","v":""},{"$f":"+IF('BSC Objetivos'!I21=0,\"\",'BSC Objetivos'!I21)","v":""},null,{"$f":"IFERROR(IF((('BSC Objetivos'!R21-'BSC Objetivos'!$E$2)-('BSC Objetivos'!R21-'BSC Seguimiento'!$D$2))/('BSC Objetivos'!R21-'BSC Objetivos'!$E$2)>1,1,(('BSC Objetivos'!R21-'BSC Objetivos'!$E$2)-(+'BSC Objetivos'!R21-'BSC Seguimiento'!$D$2))/('BSC Objetivos'!R21-'BSC Objetivos'!$E$2)),\"\")","v":-5.7777777777777775E-3},"",{"$error":"#VALUE!"}]
[18,"Crecimiento y Aprendizaje",{"$f":"+MapaEstrategico!C12","v":"Formar al 100% del equipo de mercadeo y de producción en metodos agiles de innovación en los proximos 5 años"},{"$f":"IF('BSC Objetivos'!E22=0,\"\",'BSC Objetivos'!E22)","v":""},{"$f":"+IF('BSC Objetivos'!K22=0,\"\",'BSC Objetivos'!K22)","v":"Cimplimiento de horas de capacitación"},{"$f":"IFERROR(IF(HLOOKUP($D$3,'BSC Objetivos'!$L$5:$P$27,A22,FALSE)=0,\"\",HLOOKUP($D$3,'BSC Objetivos'!$L$5:$P$27,A22,FALSE)),\"\")","v":0.9},0.3,{"$f":"+IF('BSC Objetivos'!G22=0,\"\",'BSC Objetivos'!G22)","v":"Porcentaje"},{"$f":"+IF('BSC Objetivos'!I22=0,\"\",'BSC Objetivos'!I22)","v":0.8},null,{"$f":"IFERROR(IF((('BSC Objetivos'!R22-'BSC Objetivos'!$E$2)-('BSC Objetivos'!R22-'BSC Seguimiento'!$D$2))/('BSC Objetivos'!R22-'BSC Objetivos'!$E$2)>1,1,(('BSC Objetivos'!R22-'BSC Objetivos'!$E$2)-(+'BSC Objetivos'!R22-'BSC Seguimiento'!$D$2))/('BSC Objetivos'!R22-'BSC Objetivos'!$E$2)),\"\")","v":-0.21648626144879268},0.33333333333333331,-1.5397435897435896]
[19,null,null,{"$f":"IF('BSC Objetivos'!E23=0,\"\",'BSC Objetivos'!E23)","v":""},{"$f":"+IF('BSC Objetivos'!K23=0,\"\",'BSC Objetivos'!K23)","v":""},{"$f":"IFERROR(IF(HLOOKUP($D$3,'BSC Objetivos'!$L$5:$P$27,A23,FALSE)=0,\"\",HLOOKUP($D$3,'BSC Objetivos'!$L$5:$P$27,A23,FALSE)),\"\")","v":""},null,{"$f":"+IF('BSC Objetivos'!G23=0,\"\",'BSC Objetivos'!G23)","v":""},{"$f":"+IF('BSC Objetivos'!I23=0,\"\",'BSC Objetivos'!I23)","v":""},null,{"$f":"IFERROR(IF((('BSC Objetivos'!R23-'BSC Objetivos'!$E$2)-('BSC Objetivos'!R23-'BSC Seguimiento'!$D$2))/('BSC Objetivos'!R23-'BSC Objetivos'!$E$2)>1,1,(('BSC Objetivos'!R23-'BSC Objetivos'!$E$2)-(+'BSC Objetivos'!R23-'BSC Seguimiento'!$D$2))/('BSC Objetivos'!R23-'BSC Objetivos'!$E$2)),\"\")","v":-5.7777777777777775E-3},"",{"$error":"#VALUE!"}]
[20,null,{"$f":"+MapaEstrategico!E12","v":0},{"$f":"IF('BSC Objetivos'!E24=0,\"\",'BSC Objetivos'!E24)","v":""},{"$f":"+IF('BSC Objetivos'!K24=0,\"\",'BSC Objetivos'!K24)","v":""},{"$f":"IFERROR(IF(HLOOKUP($D$3,'BSC Objetivos'!$L$5:$P$27,A24,FALSE)=0,\"\",HLOOKUP($D$3,'BSC Objetivos'!$L$5:$P$27,A24,FALSE)),\"\")","v":""},null,{"$f":"+IF('BSC Objetivos'!G24=0,\"\",'BSC Objetivos'!G24)","v":""},{"$f":"+IF('BSC Objetivos'!I24=0,\"\",'BSC Objetivos'!I24)","v":""},null,{"$f":"IFERROR(IF((('BSC Objetivos'!R24-'BSC Objetivos'!$E$2)-('BSC Objetivos'!R24-'BSC Seguimiento'!$D$2))/('BSC Objetivos'!R24-'BSC Objetivos'!$E$2)>1,1,(('BSC Objetivos'!R24-'BSC Objetivos'!$E$2)-(+'BSC Objetivos'!R24-'BSC Seguimiento'!$D$2))/('BSC Objetivos'!R24-'BSC Objetivos'!$E$2)),\"\")","v":-5.7777777777777775E-3},"",{"$error":"#VALUE!"}]
[21,null,null,{"$f":"IF('BSC Objetivos'!E25=0,\"\",'BSC Objetivos'!E25)","v":""},{"$f":"+IF('BSC Objetivos'!K25=0,\"\",'BSC Objetivos'!K25)","v":""},{"$f":"IFERROR(IF(HLOOKUP($D$3,'BSC Objetivos'!$L$5:$P$27,A25,FALSE)=0,\"\",HLOOKUP($D$3,'BSC Objetivos'!$L$5:$P$27,A25,FALSE)),\"\")","v":""},null,{"$f":"+IF('BSC Objetivos'!G25=0,\"\",'BSC Objetivos'!G25)","v":""},{"$f":"+IF('BSC Objetivos'!I25=0,\"\",'BSC Objetivos'!I25)","v":""},null,{"$f":"IFERROR(IF((('BSC Objetivos'!R25-'BSC Objetivos'!$E$2)-('BSC Objetivos'!R25-'BSC Seguimiento'!$D$2))/('BSC Objetivos'!R25-'BSC Objetivos'!$E$2)>1,1,(('BSC Objetivos'!R25-'BSC Objetivos'!$E$2)-(+'BSC Objetivos'!R25-'BSC Seguimiento'!$D$2))/('BSC Objetivos'!R25-'BSC Objetivos'!$E$2)),\"\")","v":-5.7777777777777775E-3},"",{"$error":"#VALUE!"}]
[22,null,{"$f":"+MapaEstrategico!G12","v":0},{"$f":"IF('BSC Objetivos'!E26=0,\"\",'BSC Objetivos'!E26)","v":""},{"$f":"+IF('BSC Objetivos'!K26=0,\"\",'BSC Objetivos'!K26)","v":""},{"$f":"IFERROR(IF(HLOOKUP($D$3,'BSC Objetivos'!$L$5:$P$27,A26,FALSE)=0,\"\",HLOOKUP($D$3,'BSC Objetivos'!$L$5:$P$27,A26,FALSE)),\"\")","v":""},null,{"$f":"+IF('BSC Objetivos'!G26=0,\"\",'BSC Objetivos'!G26)","v":""},{"$f":"+IF('BSC Objetivos'!I26=0,\"\",'BSC Objetivos'!I26)","v":""},null,{"$f":"IFERROR(IF((('BSC Objetivos'!R26-'BSC Objetivos'!$E$2)-('BSC Objetivos'!R26-'BSC Seguimiento'!$D$2))/('BSC Objetivos'!R26-'BSC Objetivos'!$E$2)>1,1,(('BSC Objetivos'!R26-'BSC Objetivos'!$E$2)-(+'BSC Objetivos'!R26-'BSC Seguimiento'!$D$2))/('BSC Objetivos'!R26-'BSC Objetivos'!$E$2)),\"\")","v":-5.7777777777777775E-3},"",{"$error":"#VALUE!"}]
[23,null,null,{"$f":"IF('BSC Objetivos'!E27=0,\"\",'BSC Objetivos'!E27)","v":""},{"$f":"+IF('BSC Objetivos'!K27=0,\"\",'BSC Objetivos'!K27)","v":""},{"$f":"IFERROR(IF(HLOOKUP($D$3,'BSC Objetivos'!$L$5:$P$27,A27,FALSE)=0,\"\",HLOOKUP($D$3,'BSC Objetivos'!$L$5:$P$27,A27,FALSE)),\"\")","v":""},null,{"$f":"+IF('BSC Objetivos'!G27=0,\"\",'BSC Objetivos'!G27)","v":""},{"$f":"+IF('BSC Objetivos'!I27=0,\"\",'BSC Objetivos'!I27)","v":""},null,{"$f":"IFERROR(IF((('BSC Objetivos'!R27-'BSC Objetivos'!$E$2)-('BSC Objetivos'!R27-'BSC Seguimiento'!$D$2))/('BSC Objetivos'!R27-'BSC Objetivos'!$E$2)>1,1,(('BSC Objetivos'!R27-'BSC Objetivos'!$E$2)-(+'BSC Objetivos'!R27-'BSC Seguimiento'!$D$2))/('BSC Objetivos'!R27-'BSC Objetivos'!$E$2)),\"\")","v":-5.7777777777777775E-3},"",{"$error":"#VALUE!"}]

{"sheet":"GestiónIndividual","index":3,"n_rows":20,"n_cols":8,"rows_kept":20,"cut":false,"hidden":false,"merged":[[1,1,1,3],[2,1,2,3]]}
[]
["Nombre"]
["Cargo"]
[]
["Objetivo Estratégico","Plan de acción","Indicador","Formula","Meta","Resultado","Tendencia","Nivel de Avance"]
["Incrementar la rentabilidad del activo hasta alcanzar un 15% en tres años","implementar un sustema de gestion eficiente de recursos fisicios y energeticos","Tasa de ahorro en Consumo de recursos","(Recursos consumidos año actual-Recursos consumidos año anterior)/Recursos consumidos año anterior",0.05,0.04,"Creciente",{"$f":"IFERROR(IF(G6=\"Creciente\",F6/E6,(1-(F6-E6)/E6)),\"\")","v":0.79999999999999993}]
["Lograr que el 20% de las ventas de la empresa provenga de exportaciones en 2026","Participacion en ferias internacionales y ruedas de negocio","Tasa de ventas cerradas","Ventas cerradas/reuniones de negocio desarrolladas",0.2,0.1,"Creciente",{"$f":"IFERROR(IF(G7=\"Creciente\",F7/E7,(1-(F7-E7)/E7)),\"\")","v":0.5}]
[null,null,null,null,null,null,"Creciente",""]
[null,null,null,null,null,null,"Creciente",""]
[null,null,null,null,null,null,"Creciente",""]
[null,null,null,null,null,null,"Creciente",""]
[null,null,null,null,null,null,"Creciente",""]
[null,null,null,null,null,null,"Creciente",""]
[null,null,null,null,null,null,"Creciente",""]
[null,null,null,null,null,null,"Creciente",""]
[null,null,null,null,null,null,"Creciente",""]
[null,null,null,null,null,null,"Creciente",""]
[null,null,null,null,null,null,"Creciente",""]
[null,null,null,null,null,null,"Creciente",""]
[null,null,null,null,null,null,"Creciente",""]

{"sheet":"Indicadores","index":4,"n_rows":0,"n_cols":0,"rows_kept":0,"cut":false,"hidden":false,"merged":[]}

{"sheet":"1","index":5,"n_rows":31,"n_cols":6,"rows_kept":31,"cut":false,"hidden":false,"merged":[[1,4,1,5]]}
[]
[null,null,null,null,"Crear Nuevo Indicador"]
[null,null,null,null,"Indicador","Formula"]
[null,null,null,null,null,"(Utilidad neta t-utilidad neta  t-1)/Utilidad neta t-1"]
[null,"Indicador","                     Formula","Formula"]
[null,"Capital de trabajo","Activo corriente-Pasivo Corriente"]
[null,"Ciclo de conversión del efectivo","Rotación de cartera + Rotación de Inventarios - Rotación de proveeedores"]
[null,"Ciclo del efectivo","Dias de inventarios + dias de cartera-dias de proveedores"]
[null,"Concentración de la deuda en el Corto Plazo","Pasivo Corriente/Total Pasivo"]
[null,"Crecimiento de Costos","(costos del periodo actual-costo del periodo anterior)/costos del periodo anterior"]
[null,"Crecimiento de gastos","(Gastos del periodo actual-Gastos del periodo anterior)/Gastos del periodo anterior"]
[null,"Crecimiento del Activo","(Activo total año actual-activo total año anterior)/Activo total año anterior"]
[null,"Crecimiento del pasivo","Pasivo total año actual-Pasivo total año anterior/ Pasivo total año anterior"]
[null,"Crecimiento del patrimonio","(Patrimonio año actual-Patrimonio año anterior)/Patrimonio año anterior"]
[null,"Eficiencia Inversion de capital","CAPEX (gastos de capital) periodo anterior/Ventas periodo actual"]
[null,"Endeudamiento Total","Total Pasivo/Total Activos"]
[null,"KTNO","(Ctas por cobrar + Inventarios)- ctas por pagar"]
[null,"Margen Bruto","Utilidad Bruta/Ventas"]
[null,"Margen Ebitda","EBITDA/Ventas"]
[null,"Margen Neto","Utilidad Neta/Ventas"]
[null,"Palanca de Crecimiento","EBITDA/Capital neto de trabajo (KTNO)"]
[null,"Prueba Acida","Activo corriente-Inventarios/Pasivo Corriente"]
[null,"Razon Corriente","Activo Corriente/Pasivo Corriente"]
[null,"Rentabilidad del Activo Neto","UODI/Activos Operacionales"]
[null,"ROA","Utilidad Neta periodo actual/Activo total periodo actual"]
[null,"Incremento utilidad Neta","(Utilidad neta t-utilidad neta  t-1)/Utilidad neta t-1"]
[null,null,"Ctas  por cobrar* / Promedio Ventas crédito"]
[null,"Rotación cuentas por cobrar","Ctas  por cobrar* / Promedio Ventas crédito"]
[null,"Rotación Ctas por pagar","    Ctas por pagar/ Promedio compras a crédito"]
[null,"ROE","Utilidad Neta periodo actual/Patrimonio periodo actual"]
[null,"Rotación Inventarios","Costo Vtas/ inventarios"]

{"sheet":"2","index":6,"n_rows":18,"n_cols":6,"rows_kept":18,"cut":false,"hidden":false,"merged":[[1,4,1,5]]}
[]
[null,null,null,null,"Crear Nuevo Indicador"]
[null,null,null,null,"Indicador","Formula"]
[null,null,null,null,"Ingresos por exportaciones como porcentaje de las ventas","Ingresos por exportaciones/Ventas Totales"]
[null,"Indicador","Formula"]
[null,"Ciclo de venta","Tiempo medio desde el primer contacto con un cliente hasta que se cierra la venta"]
[null,"Costo de Captación de Clientes","Costo total  de captación de clientes (contacto, seguimiento, cierre)/ Ventas Totales"]
[null,"Crecimiento en ventas","(ventas actuales - Ventas periodo anterior)/Ventas periodo anterior"]
[null,"Indice de ofertas enviadas","# de cotizaciones entregadas/# de Clientes potenciales contactados en el periodo"]
[null,"Indice de prospectos contactados","# Clientes potenciales contactados en el periodo N/# Promedio de Clientes contactados en el periodo N-1"]
[null,"Indice de ventas cerradas","# de Ventas cerradas /# de Cotizaciones entregadas"]
[null,"Ingresos por exportaciones como porcentaje de las ventas","Ingresos por exportaciones/Ventas Totales"]
[null,"Participacion en el mercado","Ventas de la empresa/Ventas totales de la industria"]
[null,"Porcentaje de Vendedores que Alcanzan sus objetivos","Vendedores que alcanzan sus objetivos periodo N/Total vendedores periodo N"]
[null,"Tasa de retencion de clientes","(Clientes existentes al final del periodo- Clientes ganados durante el periodo)/Numero de clientes existentes al inicio del periodo"]
[null,"Valor del cliente","(Ventas promedio por cliente) *(No. Promedio de veces que un cliente compra por año) *(Tiempo de tención promedio en meses o años)"]
[null,"Venta Cruzada","Clientes que adquieren mas de un producto(de diferente categoria) en el periodo N/# de clientes que adquirierion productos en el periodo N"]
[null,"Ventas por cliente","Unidades vendidas en el periodo N/# de clientes que realizaron compras en el periodo N"]

{"sheet":"3","index":7,"n_rows":22,"n_cols":6,"rows_kept":22,"cut":false,"hidden":false,"merged":[[1,4,1,5]]}
[]
[null,null,null,null,"Crear Nuevo Indicador"]
[null,null,null,null,"Indicador","Formula"]
[]
[null,"Indicador","Formula"]
[null,"% de nuevos productos","# de productos(servicios) creados/# total de productos (servicios) que hacen parte del portafolio de la empresa * 100"]
[null,"% de ventas procedente de nuevos productos","Ventas de nuevos productos/ventas totales * 100"]
[null,"% Desperdicios","# despercicios/ # de unidades fabricadas"]
[null,"% Devoluciones de Clientes","# productos(servicios) devueltos/ # productos (servicios) vendidos *100"]
[null,"%Productos defectuosos","# de productos defectuosos/ # de productos fabricados *100"]
[null,"Costo de las reparaciones","Costo de reparacion de productos vendidos/ Costo de ventas"]
[null,"Eficiencia en Costos","Costos  reales/Costos  proyectados para el periodo"]
[null,"Eficiencia en Gastos","Gastos operacionales reales/Gastos operacionales proyectados para el periodo"]
[null,"Indice de cumplimiento de proyectos","Duracion estimada de los proyectos ejecutados en el año/Duración real de proyectos ejecutados en el año"]
[null,"Nivel de inactividad","Horas productivas trabajadas en el periodo N/horas pagadas en el periodo N"]
[null,"Nivel de retrabajo","Unidades que requieren retrabajo en el periodo N/total de unidades producidad en el periodo N"]
[null,"Perdidas por Deseperdicios","Valor monetario de los desperdicios/Costo de ventas"]
[null,"Rendimiento del proceso","(unidades exitosas proceso 1/unidades estimadas proceso 1)+(unidades exitosas proceso 2/unidades estimadas proceso 2)+(unidades exitosas proceso n/unidades estimadas proceso n)"]
[null,"Tasa de Contracción del Inventario","(Inventario que se deberia tener(u)-inventario real(u))/Inventario que se deberia tener(u)"]
[null,"Tasa de entrega completa y a tiempo","# de productos(servicios) entregados completos y a tiempo/ # de prodcutos(servicios) entregados"]
[null,"Tasa de uso de la Capacidad","Capacidad utilizada en el periodo(unidades)/Capacidad Maxima en el periodo(unidades)"]
[null,"Tiempo de respuesta","Tiempo de respuesta PQRs de clientes/ total PQR Recibidas"]

{"sheet":"Hoja1","index":8,"n_rows":27,"n_cols":3,"rows_kept":27,"cut":false,"hidden":false,"merged":[]}
["Diaria"]
["Semanal"]
["Quincenal"]
["Mensual"]
["Trimestral"]
["Semestral"]
["Anual"]
[]
[]
["Año 1"]
["Año 2"]
["Año 3"]
["Año 4"]
["Año 5"]
[]
[]
[{"$f":"+MapaEstrategico!C9","v":"Incremetar el margen neto hasta alcanzar un 10% en los proximos 5 años"},{"$f":"+'BSC Objetivos'!S6","v":"implementar un sistema de gestion eficiente de recursos fisicios y energeticos"},"Creciente"]
[{"$f":"+MapaEstrategico!F9","v":0},{"$f":"+'BSC Objetivos'!S8","v":"b"},"Decreciente"]
[{"$f":"+MapaEstrategico!C10","v":"Lograr que el 20% de los ingresos provengan de ventas internacionales en los proximos 5 años"},{"$f":"+'BSC Objetivos'!S10","v":"Participacion en ferias internacionales y ruedas de negocio"}]
[{"$f":"+MapaEstrategico!E10","v":0},{"$f":"+'BSC Objetivos'!S12","v":"d"}]
[{"$f":"+MapaEstrategico!G10","v":0},{"$f":"+'BSC Objetivos'!S14","v":"e"}]
[{"$f":"+MapaEstrategico!C11","v":"Crear un nuevo producto por año durante los proximos 5 años"},{"$f":"+'BSC Objetivos'!S16","v":"f"}]
[{"$f":"+MapaEstrategico!E11","v":0},{"$f":"+'BSC Objetivos'!S18","v":"g"}]
[{"$f":"+MapaEstrategico!G11","v":0},{"$f":"+'BSC Objetivos'!S20","v":"h"}]
[{"$f":"+MapaEstrategico!C12","v":"Formar al 100% del equipo de mercadeo y de producción en metodos agiles de innovación en los proximos 5 años"},{"$f":"+'BSC Objetivos'!S22","v":"i"}]
[{"$f":"+MapaEstrategico!E12","v":0},{"$f":"+'BSC Objetivos'!S24","v":"j"}]
[{"$f":"+MapaEstrategico!G12","v":0},{"$f":"+'BSC Objetivos'!S26","v":"k"}]

{"sheet":"4","index":9,"n_rows":21,"n_cols":6,"rows_kept":21,"cut":false,"hidden":false,"merged":[[1,4,1,5]]}
[]
[null,null,null,null,"Crear Nuevo Indicador"]
[null,null,null,null,"Indicador","Formula"]
[null,null,null,null,"Digitar Indicador","Digitar formula"]
[null,"Indicador","Formula"]
[null,"Costos operativos por empleado","Costos y Gastos laborales/Total de empleados"]
[null,"Cumplimiento de horas de Capacitación","Cantidad de horas de clase realizadas/cantidad de horas de clase presupuestadas"]
[null,"Empoderamiento y apoyo a iniciativas propuestas","Calificación de 1 a 5(encuesta de ambiente laboral)"]
[null,"Facturación Media por Empleado","Ventas/Numero de Empleados"]
[null,"Grado de Satisfacción con cursos de Capacitación","Calificación de 1 a 5(encuesta de satisfacción)"]
[null,"Indice de rotacion de personal","Personas desvinculadas/((# empleados inicio del periodo + # de empleados al final del periodo)/2)"]
[null,"Indice de satisfacción general con la empresa","Calificación de 1 a 5(encuesta de ambiente laboral)"]
[null,"Indice de sugerencias ejecutadas","Número de sugerencias realizadas por los empleados/ numero de sugerencias ejecutadas por la empresa"]
[null,"Inversión en capacitación por empleado","Monto invertido en capacitación/Cantidad promedio de empleados"]
[null,"Plazo de Recuperación de la Inversión en Capacitación","Inversión en actividades de capacitación/(perdidas previas al proceso de capacitación- Perdidad posteriores al proceso de capacitación)"]
[null,"Productividad del personal","Utilidad operativa/Costos y gastos laborales"]
[null,"Reconocimiento al trabajo realizado","Calificación de 1 a 5(encuesta de ambiente laboral)"]
[null,"Tasa de Cobertura de Capacitación","Cantidad de empleados capacitados/numero de empleados promedio *100"]
[null,"Tasa de crecimiento de la curva de aprendizaje","Promedio de calificación obtenida por los empleados en examen actual/ Promedio de calificación obtenida por los empleados en examen anterior * 100"]
[null,"Tasa de retención de Talento","Colaboradores Clave que permanecen en la empresa año N/total de Colaboradores Clave año N *100"]
[null,"Tiempo promedio de vacantes no cubiertas","Dias vacantes al año/ total de vacantes disponibles al año"]